bitfinex/quotes_ETHUSD_20250518
["timestamp","ask_amount","ask_price","bid_price","bid_amount"]
[1747555368530,20.694,2513.0,2512.6,3.97993213]
[1747555368870,20.694,2513.0,2512.5,0.37746387]
[1747555368871,24.67338041,2513.0,2512.5,4.35751283]
[1747555369073,12.894,2513.0,2512.5,5.38038953]
[1747555369361,46.20188019,2513.2,2512.7,1.022]
[1747555369550,46.20188019,2513.2,2512.9,3.97937221]
[1747555369870,46.20188019,2513.2,2513.0,3.97929689]
[1747555370080,46.20188019,2513.2,2513.1,3.97914925]
[1747555371163,46.20188019,2513.2,2513.1,5.37861312]
[1747555371566,46.20188019,2513.2,2513.1,6.3144081]
[1747555372070,46.20188019,2513.2,2513.1,2.33525885]
[1747555372277,46.20188019,2513.2,2513.1,1.39946387]
[1747555372458,46.20188019,2513.2,2513.1,0.37746387]
[1747555373032,46.20188019,2513.2,2513.0,3.97920224]
[1747555373756,46.20188019,2513.2,2512.9,1.022]
[1747555373968,46.20188019,2513.2,2512.7,19.32485853]
[1747555374168,46.20188019,2513.2,2512.8,2.33047404]
[1747555374362,46.20188019,2513.2,2512.8,6.31000472]
[1747555374768,46.20188019,2513.2,2512.8,6.31003101]
[1747555375179,46.20188019,2513.2,2512.9,0.37666975]
[1747555375542,46.20188019,2513.2,2512.9,4.35612097]
[1747555375863,46.20188019,2513.2,2512.9,0.37666975]
[1747555376276,46.20188019,2513.2,2512.9,4.35609623]
[1747555376444,46.20188019,2513.2,2512.9,0.37666975]
[1747555376643,46.20188019,2513.2,2512.8,6.31007615]
[1747555377156,50.18087583,2513.2,2512.8,2.33047404]
[1747555377351,50.18087583,2513.2,2512.7,11.06173185]
[1747555377557,46.20188019,2513.2,2512.7,11.06173185]
[1747555377878,46.20188019,2513.2,2512.9,3.97946313]
[1747555378257,46.20188019,2513.2,2512.9,3.97946595]
[1747555378454,46.20188019,2513.2,2513.0,8.0]
[1747555378660,46.20188019,2513.2,2513.1,5.17709577]
[1747555379064,46.20188019,2513.2,2513.0,5.05528332]
[1747555379065,46.20188019,2513.2,2513.0,1.076]
[1747555379268,46.20188019,2513.2,2512.8,5.05555188]
[1747555379670,46.20188019,2513.2,2512.9,3.97941737]
[1747555379874,46.20188019,2513.2,2512.9,3.97946249]
[1747555380144,46.20188019,2513.2,2512.8,1.076]
[1747555380145,51.20129788,2513.2,2512.7,11.74770869]
[1747555380345,50.18094356,2513.2,2512.7,13.53036908]
[1747555380660,50.18094356,2513.2,2512.8,0.3763668]
[1747555380968,46.20188019,2513.2,2512.9,3.97944708]
[1747555381178,46.20188019,2513.2,2513.1,3.97914925]
[1747555382967,46.20188019,2513.2,2513.1,13.08923412]
[1747555383294,46.20188019,2513.2,2513.1,14.75630328]
[1747555383791,46.20188019,2513.2,2513.1,15.13243075]
[1747555384213,46.20188019,2513.2,2513.1,22.90243075]
[1747555385373,46.20188019,2513.2,2513.1,22.91948005]
[1747555388367,38.47295482,2513.2,2513.1,23.46948005]
[1747555388571,36.83210856,2513.2,2513.1,23.46948005]
[1747555388998,36.61629542,2513.2,2513.1,23.46948005]
[1747555390496,36.61629542,2513.2,2513.1,15.14948005]
[1747555390661,36.61629542,2513.2,2513.1,30.66648005]
[1747555391253,36.61629542,2513.2,2513.1,45.16648005]
[1747555391454,36.61629542,2513.2,2513.1,30.66648005]
[1747555391759,36.61629542,2513.2,2513.1,31.29865503]
[1747555392662,36.61629542,2513.2,2513.1,15.78165503]
[1747555392863,36.61629542,2513.2,2513.1,31.29865503]
[1747555393885,36.61629542,2513.2,2513.1,29.61065503]
[1747555394089,36.61629542,2513.2,2513.1,37.35365503]
[1747555395196,36.61629542,2513.2,2513.1,13.20948005]
[1747555395396,36.61629542,2513.2,2513.1,28.71448005]
[1747555395570,36.61629542,2513.2,2513.1,36.71448005]
[1747555395763,36.61629542,2513.2,2513.1,28.71448005]
[1747555396387,36.61629542,2513.2,2513.1,36.71448005]
[1747555397207,36.61629542,2513.2,2513.1,20.13918005]
[1747555397365,36.61629542,2513.2,2513.1,27.87118005]
[1747555397366,31.49399176,2513.2,2513.1,27.87118005]
[1747555398586,31.49399176,2513.2,2513.1,12.13918005]
[1747555399000,31.49399176,2513.2,2513.1,10.43232602]
[1747555400009,31.49399176,2513.2,2513.1,4.37232602]
[1747555401703,31.49399176,2513.2,2513.1,4.84390213]
[1747555402405,31.49399176,2513.2,2513.1,5.85060213]
[1747555402768,31.49399176,2513.2,2513.1,4.84390213]
[1747555404812,31.49399176,2513.2,2513.1,6.49569038]
[1747555406113,31.49399176,2513.2,2513.1,12.55569038]
[1747555406319,31.49399176,2513.2,2513.1,12.53864108]
[1747555406614,31.49399176,2513.2,2513.1,10.88685283]
[1747555406791,31.49399176,2513.2,2513.1,0.84770358]
[1747555406972,32.56769176,2513.2,2513.1,0.84770358]
[1747555407791,32.56769176,2513.2,2513.1,0.37612747]
[1747555410533,36.49108268,2513.2,2513.1,0.37612747]
[1747555410682,40.56680969,2513.2,2513.1,0.37612747]
[1747555411731,36.58781877,2513.2,2513.1,0.37612747]
[1747555411893,32.51209176,2513.2,2513.1,0.37612747]
[1747555412289,32.51209176,2513.2,2512.8,3.97951056]
[1747555412521,32.51209176,2513.2,2512.7,0.47157611]
[1747555412826,32.51209176,2513.2,2512.8,3.97962432]
[1747555413032,32.51209176,2513.2,2512.7,0.47157611]
[1747555413212,32.51209176,2513.2,2513.1,3.97914925]
[1747555413213,31.49399176,2513.2,2513.1,3.97914925]
[1747555414184,31.49399176,2513.2,2513.1,4.82215014]
[1747555415424,31.49399176,2513.2,2513.1,5.90325014]
[1747555415617,31.49399176,2513.2,2513.1,6.2805324]
[1747555417093,31.49399176,2513.2,2513.1,28.0645324]
[1747555417387,27.53436282,2513.2,2513.1,28.73544722]
[1747555417727,24.02440816,2513.2,2513.1,54.40452022]
[1747555417923,3.2612285,2513.2,2513.1,64.52452022]
[1747555418088,0.78681644,2513.2,2513.1,69.69288403]
[1747555418292,0.0008,2514.1,2514.0,13.05882474]
[1747555418487,0.0008,2514.1,2514.0,36.28349381]
[1747555418693,0.0008,2514.1,2514.0,36.7284186]
[1747555418927,0.0008,2514.1,2514.0,13.2674186]
[1747555419124,0.0008,2514.1,2514.0,10.48264953]
[1747555419337,0.0008,2514.1,2514.0,6.50492479]
[1747555420396,5.06456652,2514.1,2514.0,0.44492479]
[1747555420836,15.89905422,2514.1,2514.0,0.08342339]
[1747555420997,16.44905422,2514.1,2514.0,0.08342339]
[1747555421198,5.06471601,2513.5,2513.4,0.6279301]
[1747555421395,1.0862,2513.3,2512.7,1.25586021]
[1747555421646,1.0862,2513.2,2512.7,1.25586021]
[1747555421825,8.0,2513.9,2512.7,2.33106021]
[1747555422141,11.75238785,2513.6,2513.0,3.97924092]
[1747555422497,11.75238785,2513.6,2513.1,3.97914746]
[1747555422696,7.774,2513.6,2513.1,3.97914746]
[1747555423197,7.724,2513.6,2513.1,3.97909608]
[1747555423399,3.97831636,2513.7,2513.2,3.97897052]
[1747555423634,3.97838431,2513.6,2513.0,3.9792511]
[1747555423800,1.0181,2513.5,2513.0,3.9792511]
[1747555424001,1.0181,2513.5,2513.0,4.83822495]
[1747555424241,4.99662288,2513.5,2513.0,0.85897385]
[1747555424439,4.99662288,2513.5,2512.8,3.97955277]
[1747555424645,3.9788071,2513.4,2512.8,3.97955277]
[1747555424800,4.99664933,2513.5,2512.6,11.74689437]
[1747555425000,4.99669054,2513.5,2512.9,3.97942076]
[1747555425493,3.97868292,2513.4,2512.9,3.97942076]
[1747555426201,3.97868292,2513.4,2512.6,11.74690357]
[1747555426202,1.0181,2513.2,2512.6,11.74690357]
[1747555426411,1.0181,2513.2,2512.8,3.97961998]
[1747555427042,12.72119192,2513.2,2512.6,3.97982677]
[1747555427373,1.0181,2513.0,2512.4,0.02358232]
[1747555427695,15.9557872,2512.5,2512.4,0.02358232]
[1747555427816,32.0217872,2512.5,2512.4,0.02358232]
[1747555428013,5.1222502,2511.9,2511.8,1.25586021]
[1747555428345,23.6807379,2511.9,2511.8,1.25586021]
[1747555428913,1.1412,2511.9,2511.8,1.25586021]
[1747555429153,8.8652,2511.9,2511.6,0.46820189]
[1747555430050,12.84630423,2511.9,2511.6,0.46820189]
[1747555431055,3.98122385,2511.8,2511.6,0.46820189]
[1747555431641,3.9813672,2511.7,2511.6,0.46820189]
[1747555432256,3.98123062,2511.8,2511.6,0.46820189]
[1747555432752,7.726,2511.7,2511.6,0.46820189]
[1747555434529,3.9813672,2511.7,2511.6,0.46820189]
[1747555435147,5.0555672,2511.7,2511.6,0.46820189]
[1747555435328,7.01539539,2511.7,2511.6,0.46820189]
[1747555437545,15.01539539,2511.7,2511.6,0.46820189]
[1747555437958,15.34800659,2511.7,2511.6,0.46820189]
[1747555439671,15.89800659,2511.7,2511.6,0.46820189]
[1747555440073,31.45100659,2511.7,2511.6,0.46820189]
[1747555440287,31.45000659,2511.7,2511.6,0.46820189]
[1747555441742,15.89800659,2511.7,2511.6,0.46820189]
[1747555441981,13.3881784,2511.7,2511.6,0.46820189]
[1747555442185,1.4068112,2511.7,2511.6,0.46820189]
[1747555442340,16.9628112,2511.7,2511.6,0.46820189]
[1747555442774,16.9526712,2511.7,2511.6,0.46820189]
[1747555442976,8.1116112,2511.7,2511.6,0.46820189]
[1747555443142,0.3326112,2511.7,2511.6,0.46820189]
[1747555443340,0.3326112,2511.7,2511.6,0.9131963]
[1747555443543,8.1116112,2511.7,2511.6,0.9131963]
[1747555444299,0.3326112,2511.7,2511.6,4.89472202]
[1747555444445,2.8344877,2513.2,2511.9,3.98099162]
[1747555444644,3.9794291,2513.0,2512.3,3.98041587]
[1747555444848,8.0,2512.9,2512.1,1.116]
[1747555445058,3.97949898,2512.9,2512.2,3.98043064]
[1747555445253,11.77249898,2512.9,2512.2,3.98043064]
[1747555445459,3.9796597,2512.8,2512.2,3.9804906]
[1747555445785,1.0613,2512.8,2512.3,3.98036992]
[1747555446546,5.04093496,2512.8,2512.2,4.92803262]
[1747555446748,7.778,2512.7,2512.2,0.94754626]
[1747555446978,7.778,2512.7,2512.2,4.92809924]
[1747555447159,3.98000659,2512.6,2512.0,3.98077926]
[1747555447366,5.10271053,2512.5,2512.0,3.98077926]
[1747555447556,1.1226,2512.5,2512.1,3.98072632]
[1747555447960,1.1226,2512.8,2511.8,1.116]
[1747555448189,7.778,2512.7,2512.3,3.98033834]
[1747555449290,7.778,2512.7,2511.8,5.09708819]
[1747555449481,7.778,2512.7,2512.3,3.98032788]
[1747555450157,7.778,2512.6,2512.5,3.98000484]
[1747555450600,7.778,2512.6,2512.3,3.98030367]
[1747555450756,1.1226,2512.8,2512.1,3.98073325]
[1747555450955,7.778,2512.9,2512.5,3.97999081]
[1747555451483,11.75755814,2512.9,2512.3,3.98027972]
[1747555451794,1.1226,2512.7,2512.2,3.98057465]
[1747555452004,1.1226,2512.7,2512.1,3.9807325]
[1747555452005,3.98004925,2512.6,2512.1,3.9807325]
[1747555452370,7.777,2512.5,2512.2,3.98053629]
[1747555452800,7.777,2512.5,2512.1,0.84714712]
[1747555453168,7.777,2512.5,2511.9,3.98096509]
[1747555453496,11.7572572,2512.5,2511.9,3.98096509]
[1747555453696,13.10289846,2512.4,2511.6,1.53520189]
[1747555453907,3.98050603,2512.3,2511.7,3.9813672]
[1747555454261,3.98050603,2512.3,2511.8,3.98118275]
[1747555454482,13.10293293,2512.4,2511.8,3.98118275]
[1747555454680,3.98045273,2512.3,2511.8,3.98118275]
[1747555455217,16.65259019,2512.4,2511.7,3.98129963]
[1747555455406,3.98049566,2512.3,2511.8,3.981184]
[1747555456700,12.67225726,2512.4,2511.9,3.98091148]
[1747555456907,15.564,2512.3,2511.9,3.98091148]
[1747555457574,19.54441719,2512.3,2511.8,3.98112579]
[1747555457776,12.894,2512.2,2511.6,0.46820189]
[1747555458003,3.9812801,2511.8,2511.6,0.46820189]
[1747555458196,7.778,2511.7,2511.6,0.46820189]
[1747555458714,19.5453672,2511.7,2511.6,0.46820189]
[1747555458887,20.7731672,2511.7,2511.6,0.46820189]
[1747555459416,16.7918,2511.7,2511.6,0.46820189]
[1747555459774,5.2091672,2511.7,2511.6,0.46820189]
[1747555460110,21.68621141,2511.7,2511.6,0.46820189]
[1747555460320,33.07069911,2511.7,2511.6,0.46820189]
[1747555461104,33.36526338,2511.7,2511.6,0.46820189]
[1747555461425,17.51269911,2511.7,2511.6,0.46820189]
[1747555461726,17.0058,2511.7,2511.6,0.46820189]
[1747555462023,9.0058,2511.7,2511.6,0.46820189]
[1747555462201,7.778,2511.7,2511.6,0.46820189]
[1747555462402,5.20894344,2511.9,2511.6,0.46820189]
[1747555462601,7.778,2512.1,2511.7,0.03981248]
[1747555462820,7.778,2512.1,2511.7,4.55706678]
[1747555463228,7.72525611,2512.1,2511.7,4.55706678]
[1747555463527,18.09429067,2512.2,2511.7,4.55712845]
[1747555463528,14.1137,2512.2,2511.7,4.55712845]
[1747555463685,14.1137,2512.2,2511.7,4.55704567]
[1747555463686,7.778,2512.1,2511.7,4.55704567]
[1747555463884,7.778,2512.1,2511.8,3.98118892]
[1747555464085,7.778,2512.1,2511.9,4.43674111]
[1747555464299,7.778,2512.1,2511.9,0.45569724]
[1747555464524,7.778,2512.1,2511.9,4.43673295]
[1747555464723,7.778,2512.1,2511.9,0.45569724]
[1747555465621,11.75877515,2512.1,2511.9,0.45569724]
[1747555465824,11.75877515,2512.1,2511.7,0.57578348]
[1747555465988,7.778,2512.1,2511.7,0.57578348]
[1747555466389,7.778,2512.1,2511.7,4.55711249]
[1747555466926,11.75881093,2512.1,2511.7,0.57578348]
[1747555467113,11.75881093,2512.1,2511.6,4.44971739]
[1747555467293,7.778,2512.1,2511.7,3.98127607]
[1747555467491,11.75875138,2512.1,2511.6,4.44970266]
[1747555467712,11.75875138,2512.1,2511.6,0.46820189]
[1747555467713,3.98091509,2512.0,2511.6,0.46820189]
[1747555467929,7.778,2512.1,2511.6,0.46820189]
[1747555467930,1.2631,2511.9,2511.6,0.46820189]
[1747555468147,13.02191386,2512.1,2511.6,1.31136021]
[1747555468347,9.0411,2512.1,2511.6,0.46820189]
[1747555468552,3.98104402,2512.0,2511.6,0.46820189]
[1747555468725,7.778,2511.9,2511.6,0.46820189]
[1747555468924,11.75908498,2511.9,2511.6,0.46820189]
[1747555469130,7.778,2511.9,2511.6,0.46820189]
[1747555469735,11.75905588,2511.9,2511.6,0.46820189]
[1747555469940,7.778,2511.9,2511.6,0.46820189]
[1747555470460,11.75906589,2511.9,2511.6,0.46820189]
[1747555470817,3.98124634,2511.8,2511.6,0.46820189]
[1747555471151,7.778,2511.9,2511.6,0.46820189]
[1747555471746,11.7590519,2511.9,2511.6,0.46820189]
[1747555471928,7.779,2511.8,2511.6,0.46820189]
[1747555473133,3.9813672,2511.7,2511.6,0.46820189]
[1747555473427,6.38930392,2511.7,2511.6,0.46820189]
[1747555473636,14.38930392,2511.7,2511.6,0.46820189]
[1747555473832,14.93930392,2511.7,2511.6,0.46820189]
[1747555477239,13.7226771,2511.0,2510.9,1.44395951]
[1747555477449,31.04217889,2511.0,2510.9,1.44395951]
[1747555477776,3.98333955,2510.5,2510.0,5.25125374]
[1747555477936,7.779,2510.4,2510.0,5.25125374]
[1747555478139,7.779,2510.4,2510.0,1.2672]
[1747555478339,3.98303925,2510.7,2510.0,1.2672]
[1747555478533,19.52912191,2510.6,2510.1,4.61086866]
[1747555478839,3.9834507,2510.4,2510.1,0.62706405]
[1747555479239,3.98334486,2510.5,2510.1,0.62706405]
[1747555479452,3.98352846,2510.4,2510.1,0.62706405]
[1747555479837,3.98352846,2510.4,2510.1,0.37773873]
[1747555479838,2.47029987,2510.4,2510.1,0.37773873]
[1747555480072,3.98374631,2510.2,2510.1,0.37773873]
[1747555481179,3.98358761,2510.3,2509.7,5.25166191]
[1747555481385,3.98384211,2510.2,2509.7,1.2672]
[1747555481679,7.781,2510.1,2509.7,1.2672]
[1747555481847,7.781,2510.1,2509.7,5.25165688]
[1747555482052,7.781,2510.1,2509.7,1.2672]
[1747555482260,7.781,2510.1,2509.7,5.25173782]
[1747555482469,7.781,2510.1,2509.8,3.98436755]
[1747555482673,3.98347158,2510.4,2509.8,0.92362255]
[1747555482841,15.543,2510.3,2509.8,4.90792]
[1747555483040,19.52669173,2510.3,2509.8,0.92362255]
[1747555483380,15.543,2510.3,2509.8,0.92362255]
[1747555483688,3.98393864,2510.1,2509.7,1.2672]
[1747555484039,15.543,2510.3,2509.7,1.2672]
[1747555484240,15.543,2510.3,2509.6,3.98458791]
[1747555484440,15.543,2510.3,2509.7,3.98445714]
[1747555484441,19.52664755,2510.3,2509.7,3.98445714]
[1747555484670,3.9837604,2510.2,2509.5,1.1834]
[1747555484856,0.55,2510.4,2509.9,3.98408066]
[1747555485057,0.55,2510.4,2509.5,1.1834]
[1747555485058,7.782,2510.1,2509.8,3.98431408]
[1747555485473,7.782,2510.1,2509.5,1.1834]
[1747555485654,7.782,2510.1,2509.7,3.98445364]
[1747555486063,7.782,2510.1,2509.8,3.98435549]
[1747555486670,7.782,2510.1,2509.6,3.98469875]
[1747555487077,7.782,2510.1,2509.6,0.91529374]
[1747555487281,7.751,2510.2,2509.6,0.91529374]
[1747555487282,1.42733705,2510.4,2509.6,0.03984347]
[1747555487489,15.527,2510.3,2509.8,3.98427175]
[1747555487781,15.527,2510.3,2509.8,3.98425131]
[1747555488168,3.98384388,2510.2,2509.7,3.98453233]
[1747555488346,3.98383129,2510.2,2509.6,3.98465275]
[1747555488544,3.98383129,2510.2,2509.6,4.89994123]
[1747555488752,0.55,2510.2,2509.5,5.16815717]
[1747555488983,3.98410923,2510.0,2509.5,5.16815717]
[1747555489355,1.1959,2510.1,2509.5,1.1834]
[1747555489679,1.1959,2510.1,2509.1,6.5319124]
[1747555489680,3.98445609,2509.8,2509.3,1.2357]
[1747555489867,7.783,2509.7,2509.3,5.22087175]
[1747555490581,1.1959,2510.1,2509.3,2.15633355]
[1747555490748,1.1959,2510.1,2509.6,3.98457618]
[1747555490749,15.515,2510.0,2509.6,3.98457618]
[1747555491084,15.515,2510.0,2509.4,3.98501633]
[1747555491544,1.1959,2510.1,2509.5,3.98485754]
[1747555491746,15.513,2510.0,2509.4,3.98495852]
[1747555492060,19.49711616,2510.0,2509.5,3.98478484]
[1747555492584,15.513,2510.0,2509.6,3.9846877]
[1747555493083,19.49707006,2510.0,2509.5,3.98478568]
[1747555493280,15.513,2510.0,2509.6,3.98469118]
[1747555494094,1.1959,2510.1,2509.7,3.98452748]
[1747555494260,19.48709072,2510.0,2509.5,3.98475938]
[1747555494985,15.503,2510.0,2509.3,1.2357]
[1747555495159,5.17984708,2510.1,2509.6,3.98459553]
[1747555495350,15.499,2510.0,2509.6,3.98459553]
[1747555495888,15.499,2510.0,2509.6,3.98469875]
[1747555496260,7.784,2509.9,2509.7,3.98453133]
[1747555496464,17.43682608,2510.2,2509.7,3.98453133]
[1747555496465,7.784,2510.0,2509.7,3.98453133]
[1747555496681,16.88682608,2510.2,2509.7,3.98453133]
[1747555496865,7.784,2510.0,2509.7,3.98453133]
[1747555497925,7.785,2510.0,2509.8,3.98426356]
[1747555498127,7.785,2510.1,2509.8,3.98426811]
[1747555498308,7.785,2510.1,2509.8,3.98429559]
[1747555498624,7.785,2510.1,2510.0,3.98403887]
[1747555498835,20.688,2510.2,2510.0,3.98403887]
[1747555499042,20.688,2510.2,2510.1,3.98390502]
[1747555499043,7.785,2510.2,2510.1,3.98390502]
[1747555499183,8.0,2510.5,2510.2,3.98369685]
[1747555499387,8.0,2510.5,2510.1,3.98384275]
[1747555500417,11.98342841,2510.5,2509.9,5.15804585]
[1747555500621,3.98385468,2510.2,2509.9,1.1739]
[1747555500777,11.66358538,2510.5,2509.7,1.1739]
[1747555500981,3.98317272,2510.6,2510.2,1.1739]
[1747555500982,7.711,2510.6,2510.2,1.1739]
[1747555501334,7.711,2510.6,2510.2,5.15762456]
[1747555501543,8.0,2510.9,2510.5,3.98317208]
[1747555501754,7.711,2510.8,2510.2,4.89788343]
[1747555501898,1.1713,2511.2,2510.2,4.89788343]
[1747555501899,8.8823,2511.5,2510.7,1.1739]
[1747555502218,7.711,2511.5,2511.1,3.98229473]
[1747555502515,7.711,2511.5,2510.8,0.3775298]
[1747555502516,7.711,2511.5,2510.8,4.36030259]
[1747555502716,7.711,2511.5,2510.8,0.93095006]
[1747555502896,7.711,2511.5,2511.0,3.98239151]
[1747555503281,7.71,2511.4,2511.1,3.98227223]
[1747555503483,14.0763,2511.8,2511.0,1.2686]
[1747555503688,20.615,2511.8,2511.5,3.98160588]
[1747555503888,20.615,2511.8,2511.5,5.25020588]
[1747555504422,20.615,2511.8,2511.5,6.17344521]
[1747555504617,20.615,2511.8,2511.5,6.173405]
[1747555506028,20.615,2511.8,2511.6,3.98148741]
[1747555506631,12.905,2511.8,2511.5,1.2686]
[1747555506917,12.905,2511.8,2511.1,0.4719124]
[1747555506918,12.905,2511.8,2511.4,3.98174802]
[1747555507117,12.905,2511.8,2511.7,3.9813672]
[1747555508329,14.1459,2512.7,2512.2,3.98045313]
[1747555508494,7.708,2512.6,2512.2,3.98045313]
[1747555508696,7.708,2512.6,2512.2,3.98052209]
[1747555508930,7.707,2512.5,2512.1,3.98063242]
[1747555509397,11.68713845,2512.5,2511.8,1.1529]
[1747555509597,1.2449,2512.3,2511.6,1.1529]
[1747555509815,3.98066929,2512.2,2511.6,5.13427578]
[1747555510325,3.98066929,2512.2,2511.7,3.98136002]
[1747555510522,1.2449,2512.3,2511.6,1.1529]
[1747555510828,3.82820385,2512.5,2511.6,1.1529]
[1747555511131,3.98027011,2512.4,2511.9,3.98099073]
[1747555511529,26.12576572,2512.7,2512.1,5.1335322]
[1747555511693,26.12576572,2512.7,2512.1,5.13355932]
[1747555511892,7.707,2512.6,2512.2,3.98056779]
[1747555512107,7.706,2512.5,2512.2,3.98056779]
[1747555512396,7.706,2512.5,2512.2,0.91143363]
[1747555512826,7.706,2512.5,2512.2,4.89191827]
[1747555513026,22.1459,2512.7,2512.2,4.89191827]
[1747555513337,7.706,2512.5,2512.2,4.89191827]
[1747555513503,7.706,2512.5,2512.2,0.91143363]
[1747555513704,7.706,2512.5,2512.2,3.98056149]
[1747555514145,7.706,2512.5,2511.8,1.2746]
[1747555514322,3.98025792,2512.4,2511.8,1.2746]
[1747555514523,3.9806095,2512.2,2511.8,1.2746]
[1747555514736,1.2746,2512.2,2511.6,1.2746]
[1747555515111,1.2746,2512.2,2511.6,5.25611584]
[1747555515112,3.98073325,2512.1,2511.6,5.25611584]
[1747555515435,7.706,2512.0,2511.6,5.25611584]
[1747555515609,7.706,2512.0,2511.6,1.2746]
[1747555516107,11.68692722,2512.0,2511.5,3.98168111]
[1747555516431,7.706,2512.0,2511.5,4.90550743]
[1747555516634,7.706,2512.0,2511.6,3.98152233]
[1747555516849,7.706,2512.5,2511.6,1.2746]
[1747555517046,11.68610426,2512.5,2512.0,3.98078039]
[1747555517348,3.98025792,2512.4,2511.7,1.2746]
[1747555517651,3.98025792,2512.4,2511.5,0.92382632]
[1747555517652,5.23110229,2512.1,2511.5,5.20691401]
[1747555517836,7.705,2512.0,2511.5,5.20691401]
[1747555518345,11.68516425,2512.5,2511.6,1.2078]
[1747555518549,7.705,2512.5,2512.1,3.98072238]
[1747555518734,5.23027238,2512.6,2512.1,3.98072238]
[1747555518936,11.68514815,2512.5,2512.0,1.2078]
[1747555519142,3.9803605,2512.4,2511.8,5.1889229]
[1747555519315,3.98037989,2512.4,2511.9,3.98095689]
[1747555520452,3.98042927,2512.3,2511.8,5.18895498]
[1747555520635,3.98067009,2512.2,2511.7,3.98134988]
[1747555521625,11.68568199,2512.2,2511.7,3.98124393]
[1747555521826,1.2503,2512.1,2511.5,0.92382632]
[1747555522176,1.2503,2512.1,2511.7,3.9813403]
[1747555522313,8.9553,2512.6,2512.2,3.98047596]
[1747555522652,8.0,2512.5,2511.8,1.2078]
[1747555522829,3.98045612,2512.3,2511.6,1.2078]
[1747555523032,3.98065753,2512.2,2511.7,3.98135873]
[1747555523215,7.776,2512.4,2511.7,3.9813672]
[1747555523415,3.98053796,2512.3,2511.7,3.98126874]
[1747555523616,11.75632606,2512.4,2511.8,3.98105681]
[1747555523816,3.98061412,2512.2,2511.7,4.50020042]
[1747555524016,7.705,2512.1,2511.6,1.2078]
[1747555524216,7.705,2512.1,2511.6,5.18924239]
[1747555524419,7.705,2512.1,2511.7,3.9813386]
[1747555524813,7.705,2512.1,2511.8,3.98120572]
[1747555525031,7.705,2512.1,2511.7,3.98130694]
[1747555525244,11.68580729,2512.1,2511.6,5.1893146]
[1747555525974,7.705,2512.1,2511.6,5.1893146]
[1747555526168,7.705,2512.1,2511.7,3.98123505]
[1747555526336,7.705,2512.1,2511.8,3.98120869]
[1747555526648,7.705,2512.1,2511.9,3.98100507]
[1747555526858,7.705,2512.1,2511.6,6.10636555]
[1747555527045,5.23088625,2512.2,2511.7,3.98128969]
[1747555527354,7.705,2512.1,2511.7,3.98128969]
[1747555527551,1.2503,2512.2,2511.7,3.98128969]
[1747555527756,7.705,2512.1,2511.9,3.98103345]
[1747555527961,7.705,2512.1,2511.9,3.98101078]
[1747555528454,7.705,2512.2,2511.7,0.61061893]
[1747555528653,1.2503,2512.5,2512.1,3.98073325]
[1747555528823,1.2503,2512.5,2511.6,2.12489959]
[1747555528824,15.46,2512.4,2511.6,2.12489959]
[1747555529019,3.98037325,2512.4,2511.8,3.98105637]
[1747555529272,7.705,2512.3,2511.8,3.98105637]
[1747555529426,7.705,2512.3,2511.9,3.98092587]
[1747555529851,7.705,2512.3,2512.0,0.3778828]
[1747555530049,1.2503,2512.5,2512.0,4.35862151]
[1747555530367,7.705,2512.4,2512.0,4.35869546]
[1747555530571,11.6853256,2512.4,2512.0,0.3778828]
[1747555531455,11.6853256,2512.4,2511.9,3.98097172]
[1747555531760,7.705,2512.4,2512.0,3.98089129]
[1747555532128,7.705,2512.4,2511.8,3.98120869]
[1747555532440,3.9804167,2512.3,2511.8,5.03714215]
[1747555532762,3.98082288,2512.1,2511.7,0.4719124]
[1747555532970,5.24812288,2512.1,2511.7,0.4719124]
[1747555533167,1.2673,2512.1,2511.8,0.37874453]
[1747555533666,3.9810502,2511.9,2511.8,0.37874453]
[1747555533882,11.7180502,2511.9,2511.8,0.37874453]
[1747555534229,14.73897439,2511.9,2511.8,0.37874453]
[1747555534432,24.00627439,2511.9,2511.8,0.37874453]
[1747555534657,0.55,2511.5,2511.2,0.4719124]
[1747555534962,3.98200135,2511.3,2511.2,0.4719124]
[1747555535343,15.482,2511.4,2511.2,0.4719124]
[1747555535527,1.8173,2511.5,2511.2,0.4719124]
[1747555535732,9.0043,2511.5,2511.2,0.4719124]
[1747555535929,14.1613,2511.7,2511.2,0.98003436]
[1747555536136,7.737,2511.6,2511.3,3.98200135]
[1747555536375,12.894,2511.7,2511.4,3.98172292]
[1747555536534,7.738,2511.6,2511.4,3.98172292]
[1747555536729,7.738,2511.6,2511.3,3.98192453]
[1747555537036,1.2673,2511.5,2511.2,0.4719124]
[1747555537267,3.98200135,2511.3,2511.2,0.4719124]
[1747555537475,11.74100135,2511.3,2511.2,0.4719124]
[1747555537770,11.74100135,2511.3,2510.8,3.98278547]
[1747555538277,1.2673,2511.5,2510.6,1.6740124]
[1747555538436,1.2673,2511.5,2511.0,3.98244783]
[1747555538437,15.493,2511.4,2511.0,3.98244783]
[1747555538633,1.2673,2511.5,2511.1,3.98225547]
[1747555538861,1.2673,2511.5,2510.6,1.6740124]
[1747555538862,15.492,2511.4,2510.6,1.6740124]
[1747555539034,15.492,2511.4,2510.9,3.98249993]
[1747555539234,19.47387562,2511.4,2510.9,3.98249993]
[1747555539639,3.98207496,2511.3,2510.8,3.98271518]
[1747555539841,15.492,2511.4,2510.6,5.6570631]
[1747555539842,15.492,2511.4,2510.6,1.6740124]
[1747555540034,3.98229415,2511.2,2510.6,5.65704903]
[1747555540354,3.98233417,2511.1,2510.6,5.65704903]
[1747555540554,0.94807851,2511.2,2510.6,5.65704903]
[1747555540555,4.93028075,2511.2,2510.7,3.98294251]
[1747555540974,4.93028075,2511.2,2510.6,1.6740124]
[1747555541184,19.47392258,2511.4,2510.9,3.98260487]
[1747555541341,19.47392258,2511.4,2510.8,3.98271097]
[1747555541541,3.98201701,2511.3,2510.8,3.98271097]
[1747555541754,19.46901701,2511.3,2510.8,3.98271097]
[1747555542069,3.98201701,2511.3,2510.8,3.98271097]
[1747555542252,15.485,2511.2,2510.8,3.98271097]
[1747555542464,1.2673,2511.5,2511.0,3.98232518]
[1747555542670,7.739,2511.5,2511.3,3.98190382]
[1747555542841,7.739,2511.5,2511.2,3.98207644]
[1747555543037,14.1,2511.7,2511.4,3.98184279]
[1747555543268,14.1,2511.7,2511.3,3.98191834]
[1747555543269,7.739,2511.6,2511.3,3.98191834]
[1747555543467,7.739,2511.6,2510.9,5.17020211]